{"text_format":"3","workbook":"xlsx","n_sheets":2,"sheets":["Praćenje projekata","Podešavanje"],"not_rendered":{"defined_names":6},"read":"whole","date_system":"1900"}

{"sheet":"Praćenje projekata","index":0,"n_rows":13,"n_cols":15,"rows_kept":13}
[null,"Praćenje projekata"]
[null,null,"Procenat iznad/ispod za označavanje zastavicom: ",{"v":0.25,"d":"25%"}]
[]
[null,"Projekat","Kategorija","Dodeljeno","Procenjeni\npočetak","Procenjeni \nkraj","Procenjeni \nrad \n(u časovima)","Procenjeno \ntrajanje \n(u danima)","Stvarni \npočetak","Stvarni\nkraj","Ikona zastavice za iznad/ispod stvarnog rada (u časovima)","Stvarni rad \n(u časovima)","Ikona zastavice za iznad/ispod stvarnog trajanja (u danima)","Stvarno \ntrajanje \n(u danima)","Napomene"]
[null,"Projekat 1","Kategorija 1","Zaposleni 1",{"$f":"TODAY()-65","v":"2017-02-04"},{"$f":"TODAY()-5","v":"2017-04-05"},210,{"$f":"IF(COUNTA('Praćenje projekata'!$E5,'Praćenje projekata'!$F5)<>2,\"\",DAYS360('Praćenje projekata'!$E5,'Praćenje projekata'!$F5,FALSE))","v":61},{"$f":"TODAY()-65","v":"2017-02-04"},{"$f":"TODAY()","v":"2017-04-10"},{"$f":"IFERROR(IF(PraćenjeProjekta[Stvarni rad \n(u časovima)]=0,\"\",IF(ABS((PraćenjeProjekta[[#This Row],[Stvarni rad \n(u časovima)]]-PraćenjeProjekta[[#This Row],[Procenjeni \nrad \n(u časovima)]])/PraćenjeProjekta[[#This Row],[Procenjeni \nrad \n(u časovima)]])>ProcenatZastavice,1,0)),\"\")","v":1},300,{"$f":"IFERROR(IF(PraćenjeProjekta[Stvarno \ntrajanje \n(u danima)]=0,\"\",IF(ABS((PraćenjeProjekta[[#This Row],[Stvarno \ntrajanje \n(u danima)]]-PraćenjeProjekta[[#This Row],[Procenjeno \ntrajanje \n(u danima)]])/PraćenjeProjekta[[#This Row],[Procenjeno \ntrajanje \n(u danima)]])>ProcenatZastavice,1,0)),\"\")","v":0},{"$f":"IF(COUNTA('Praćenje projekata'!$I5,'Praćenje projekata'!$J5)<>2,\"\",DAYS360('Praćenje projekata'!$I5,'Praćenje projekata'!$J5,FALSE))","v":66}]
[null,"Projekat 2","Kategorija 2","Zaposleni 4",{"$f":"TODAY()-41","v":"2017-02-28"},{"$f":"TODAY()-10","v":"2017-03-31"},400,{"$f":"IF(COUNTA('Praćenje projekata'!$E6,'Praćenje projekata'!$F6)<>2,\"\",DAYS360('Praćenje projekata'!$E6,'Praćenje projekata'!$F6,FALSE))","v":30},{"$f":"TODAY()-41","v":"2017-02-28"},{"$f":"TODAY()-7","v":"2017-04-03"},{"$f":"IFERROR(IF(PraćenjeProjekta[Stvarni rad \n(u časovima)]=0,\"\",IF(ABS((PraćenjeProjekta[[#This Row],[Stvarni rad \n(u časovima)]]-PraćenjeProjekta[[#This Row],[Procenjeni \nrad \n(u časovima)]])/PraćenjeProjekta[[#This Row],[Procenjeni \nrad \n(u časovima)]])>ProcenatZastavice,1,0)),\"\")","v":0},390,{"$f":"IFERROR(IF(PraćenjeProjekta[Stvarno \ntrajanje \n(u danima)]=0,\"\",IF(ABS((PraćenjeProjekta[[#This Row],[Stvarno \ntrajanje \n(u danima)]]-PraćenjeProjekta[[#This Row],[Procenjeno \ntrajanje \n(u danima)]])/PraćenjeProjekta[[#This Row],[Procenjeno \ntrajanje \n(u danima)]])>ProcenatZastavice,1,0)),\"\")","v":0},{"$f":"IF(COUNTA('Praćenje projekata'!$I6,'Praćenje projekata'!$J6)<>2,\"\",DAYS360('Praćenje projekata'!$I6,'Praćenje projekata'!$J6,FALSE))","v":33}]
[null,"Projekat 3","Kategorija 1","Zaposleni 2",{"$f":"TODAY()-100","v":"2016-12-31"},{"$f":"TODAY()-40","v":"2017-03-01"},500,{"$f":"IF(COUNTA('Praćenje projekata'!$E7,'Praćenje projekata'!$F7)<>2,\"\",DAYS360('Praćenje projekata'!$E7,'Praćenje projekata'!$F7,FALSE))","v":61},{"$f":"TODAY()-100","v":"2016-12-31"},{"$f":"TODAY()-27","v":"2017-03-14"},{"$f":"IFERROR(IF(PraćenjeProjekta[Stvarni rad \n(u časovima)]=0,\"\",IF(ABS((PraćenjeProjekta[[#This Row],[Stvarni rad \n(u časovima)]]-PraćenjeProjekta[[#This Row],[Procenjeni \nrad \n(u časovima)]])/PraćenjeProjekta[[#This Row],[Procenjeni \nrad \n(u časovima)]])>ProcenatZastavice,1,0)),\"\")","v":0},500,{"$f":"IFERROR(IF(PraćenjeProjekta[Stvarno \ntrajanje \n(u danima)]=0,\"\",IF(ABS((PraćenjeProjekta[[#This Row],[Stvarno \ntrajanje \n(u danima)]]-PraćenjeProjekta[[#This Row],[Procenjeno \ntrajanje \n(u danima)]])/PraćenjeProjekta[[#This Row],[Procenjeno \ntrajanje \n(u danima)]])>ProcenatZastavice,1,0)),\"\")","v":0},{"$f":"IF(COUNTA('Praćenje projekata'!$I7,'Praćenje projekata'!$J7)<>2,\"\",DAYS360('Praćenje projekata'!$I7,'Praćenje projekata'!$J7,FALSE))","v":74}]
[null,"Projekat 4","Kategorija 2","Zaposleni 3",{"$f":"TODAY()-90","v":"2017-01-10"},{"$f":"TODAY()-80","v":"2017-01-20"},250,{"$f":"IF(COUNTA('Praćenje projekata'!$E8,'Praćenje projekata'!$F8)<>2,\"\",DAYS360('Praćenje projekata'!$E8,'Praćenje projekata'!$F8,FALSE))","v":10},{"$f":"TODAY()-90","v":"2017-01-10"},{"$f":"TODAY()-71","v":"2017-01-29"},{"$f":"IFERROR(IF(PraćenjeProjekta[Stvarni rad \n(u časovima)]=0,\"\",IF(ABS((PraćenjeProjekta[[#This Row],[Stvarni rad \n(u časovima)]]-PraćenjeProjekta[[#This Row],[Procenjeni \nrad \n(u časovima)]])/PraćenjeProjekta[[#This Row],[Procenjeni \nrad \n(u časovima)]])>ProcenatZastavice,1,0)),\"\")","v":0},276,{"$f":"IFERROR(IF(PraćenjeProjekta[Stvarno \ntrajanje \n(u danima)]=0,\"\",IF(ABS((PraćenjeProjekta[[#This Row],[Stvarno \ntrajanje \n(u danima)]]-PraćenjeProjekta[[#This Row],[Procenjeno \ntrajanje \n(u danima)]])/PraćenjeProjekta[[#This Row],[Procenjeno \ntrajanje \n(u danima)]])>ProcenatZastavice,1,0)),\"\")","v":1},{"$f":"IF(COUNTA('Praćenje projekata'!$I8,'Praćenje projekata'!$J8)<>2,\"\",DAYS360('Praćenje projekata'!$I8,'Praćenje projekata'!$J8,FALSE))","v":19}]
[null,"Projekat 5","Kategorija 3","Zaposleni 2",{"$f":"TODAY()-90","v":"2017-01-10"},{"$f":"TODAY()-50","v":"2017-02-19"},300,{"$f":"IF(COUNTA('Praćenje projekata'!$E9,'Praćenje projekata'!$F9)<>2,\"\",DAYS360('Praćenje projekata'!$E9,'Praćenje projekata'!$F9,FALSE))","v":39},{"$f":"TODAY()-90","v":"2017-01-10"},{"$f":"TODAY()-44","v":"2017-02-25"},{"$f":"IFERROR(IF(PraćenjeProjekta[Stvarni rad \n(u časovima)]=0,\"\",IF(ABS((PraćenjeProjekta[[#This Row],[Stvarni rad \n(u časovima)]]-PraćenjeProjekta[[#This Row],[Procenjeni \nrad \n(u časovima)]])/PraćenjeProjekta[[#This Row],[Procenjeni \nrad \n(u časovima)]])>ProcenatZastavice,1,0)),\"\")","v":0},310,{"$f":"IFERROR(IF(PraćenjeProjekta[Stvarno \ntrajanje \n(u danima)]=0,\"\",IF(ABS((PraćenjeProjekta[[#This Row],[Stvarno \ntrajanje \n(u danima)]]-PraćenjeProjekta[[#This Row],[Procenjeno \ntrajanje \n(u danima)]])/PraćenjeProjekta[[#This Row],[Procenjeno \ntrajanje \n(u danima)]])>ProcenatZastavice,1,0)),\"\")","v":0},{"$f":"IF(COUNTA('Praćenje projekata'!$I9,'Praćenje projekata'!$J9)<>2,\"\",DAYS360('Praćenje projekata'!$I9,'Praćenje projekata'!$J9,FALSE))","v":45}]
[null,"Projekat 6","Kategorija 4","Zaposleni 4",{"$f":"TODAY()-60","v":"2017-02-09"},{"$f":"TODAY()-50","v":"2017-02-19"},500,{"$f":"IF(COUNTA('Praćenje projekata'!$E10,'Praćenje projekata'!$F10)<>2,\"\",DAYS360('Praćenje projekata'!$E10,'Praćenje projekata'!$F10,FALSE))","v":10},{"$f":"TODAY()-60","v":"2017-02-09"},{"$f":"TODAY()-45","v":"2017-02-24"},{"$f":"IFERROR(IF(PraćenjeProjekta[Stvarni rad \n(u časovima)]=0,\"\",IF(ABS((PraćenjeProjekta[[#This Row],[Stvarni rad \n(u časovima)]]-PraćenjeProjekta[[#This Row],[Procenjeni \nrad \n(u časovima)]])/PraćenjeProjekta[[#This Row],[Procenjeni \nrad \n(u časovima)]])>ProcenatZastavice,1,0)),\"\")","v":0},510,{"$f":"IFERROR(IF(PraćenjeProjekta[Stvarno \ntrajanje \n(u danima)]=0,\"\",IF(ABS((PraćenjeProjekta[[#This Row],[Stvarno \ntrajanje \n(u danima)]]-PraćenjeProjekta[[#This Row],[Procenjeno \ntrajanje \n(u danima)]])/PraćenjeProjekta[[#This Row],[Procenjeno \ntrajanje \n(u danima)]])>ProcenatZastavice,1,0)),\"\")","v":1},{"$f":"IF(COUNTA('Praćenje projekata'!$I10,'Praćenje projekata'!$J10)<>2,\"\",DAYS360('Praćenje projekata'!$I10,'Praćenje projekata'!$J10,FALSE))","v":15}]
[null,"Projekat 7","Kategorija 5","Zaposleni 1",{"$f":"TODAY()-44","v":"2017-02-25"},{"$f":"TODAY()-20","v":"2017-03-21"},750,{"$f":"IF(COUNTA('Praćenje projekata'!$E11,'Praćenje projekata'!$F11)<>2,\"\",DAYS360('Praćenje projekata'!$E11,'Praćenje projekata'!$F11,FALSE))","v":26},{"$f":"TODAY()-44","v":"2017-02-25"},{"$f":"TODAY()-15","v":"2017-03-26"},{"$f":"IFERROR(IF(PraćenjeProjekta[Stvarni rad \n(u časovima)]=0,\"\",IF(ABS((PraćenjeProjekta[[#This Row],[Stvarni rad \n(u časovima)]]-PraćenjeProjekta[[#This Row],[Procenjeni \nrad \n(u časovima)]])/PraćenjeProjekta[[#This Row],[Procenjeni \nrad \n(u časovima)]])>ProcenatZastavice,1,0)),\"\")","v":0},790,{"$f":"IFERROR(IF(PraćenjeProjekta[Stvarno \ntrajanje \n(u danima)]=0,\"\",IF(ABS((PraćenjeProjekta[[#This Row],[Stvarno \ntrajanje \n(u danima)]]-PraćenjeProjekta[[#This Row],[Procenjeno \ntrajanje \n(u danima)]])/PraćenjeProjekta[[#This Row],[Procenjeno \ntrajanje \n(u danima)]])>ProcenatZastavice,1,0)),\"\")","v":0},{"$f":"IF(COUNTA('Praćenje projekata'!$I11,'Praćenje projekata'!$J11)<>2,\"\",DAYS360('Praćenje projekata'!$I11,'Praćenje projekata'!$J11,FALSE))","v":31}]
[null,"Projekat 8","Kategorija 2","Zaposleni 1",{"$f":"TODAY()-39","v":"2017-03-02"},{"$f":"TODAY()","v":"2017-04-10"},450,{"$f":"IF(COUNTA('Praćenje projekata'!$E12,'Praćenje projekata'!$F12)<>2,\"\",DAYS360('Praćenje projekata'!$E12,'Praćenje projekata'!$F12,FALSE))","v":38},{"$f":"TODAY()-45","v":"2017-02-24"},{"$f":"TODAY()-5","v":"2017-04-05"},{"$f":"IFERROR(IF(PraćenjeProjekta[Stvarni rad \n(u časovima)]=0,\"\",IF(ABS((PraćenjeProjekta[[#This Row],[Stvarni rad \n(u časovima)]]-PraćenjeProjekta[[#This Row],[Procenjeni \nrad \n(u časovima)]])/PraćenjeProjekta[[#This Row],[Procenjeni \nrad \n(u časovima)]])>ProcenatZastavice,1,0)),\"\")","v":0},430,{"$f":"IFERROR(IF(PraćenjeProjekta[Stvarno \ntrajanje \n(u danima)]=0,\"\",IF(ABS((PraćenjeProjekta[[#This Row],[Stvarno \ntrajanje \n(u danima)]]-PraćenjeProjekta[[#This Row],[Procenjeno \ntrajanje \n(u danima)]])/PraćenjeProjekta[[#This Row],[Procenjeno \ntrajanje \n(u danima)]])>ProcenatZastavice,1,0)),\"\")","v":0},{"$f":"IF(COUNTA('Praćenje projekata'!$I12,'Praćenje projekata'!$J12)<>2,\"\",DAYS360('Praćenje projekata'!$I12,'Praćenje projekata'!$J12,FALSE))","v":41}]
[null,"Projekat 9","Kategorija 4","Zaposleni 1","2016-02-05","2016-06-09",250,{"$f":"IF(COUNTA('Praćenje projekata'!$E13,'Praćenje projekata'!$F13)<>2,\"\",DAYS360('Praćenje projekata'!$E13,'Praćenje projekata'!$F13,FALSE))","v":124},"2016-03-05","2016-05-05",{"$f":"IFERROR(IF(PraćenjeProjekta[Stvarni rad \n(u časovima)]=0,\"\",IF(ABS((PraćenjeProjekta[[#This Row],[Stvarni rad \n(u časovima)]]-PraćenjeProjekta[[#This Row],[Procenjeni \nrad \n(u časovima)]])/PraćenjeProjekta[[#This Row],[Procenjeni \nrad \n(u časovima)]])>ProcenatZastavice,1,0)),\"\")","v":0},200,{"$f":"IFERROR(IF(PraćenjeProjekta[Stvarno \ntrajanje \n(u danima)]=0,\"\",IF(ABS((PraćenjeProjekta[[#This Row],[Stvarno \ntrajanje \n(u danima)]]-PraćenjeProjekta[[#This Row],[Procenjeno \ntrajanje \n(u danima)]])/PraćenjeProjekta[[#This Row],[Procenjeno \ntrajanje \n(u danima)]])>ProcenatZastavice,1,0)),\"\")","v":1},{"$f":"IF(COUNTA('Praćenje projekata'!$I13,'Praćenje projekata'!$J13)<>2,\"\",DAYS360('Praćenje projekata'!$I13,'Praćenje projekata'!$J13,FALSE))","v":60}]

{"sheet":"Podešavanje","index":1,"n_rows":10,"n_cols":3,"rows_kept":10}
[null,"Podešavanje"]
[]
[]
[null,"Ime kategorije","Ime zaposlenog"]
[null,"Kategorija 1","Zaposleni 1"]
[null,"Kategorija 2","Zaposleni 2"]
[null,"Kategorija 3","Zaposleni 3"]
[null,"Kategorija 4","Zaposleni 4"]
[null,"Kategorija 5","Zaposleni 5"]
[null,"Kategorija 6","Zaposleni 6"]